[Event "LV Capablanca Memorial Premier 2022"]
[Site "La Habana"]
[Date "2022.04.20"]
[Round "2.1"]
[White "Hernandez Moya, Yuleisy"]
[Black "Arribas Robaina, Maritza"]
[Result "0-1"]
[ECO "C54"]
[WhiteElo "2250"]
[BlackElo "2204"]
[Annotator "TA"]
[PlyCount "101"]
[EventDate "2022.04.20"]
[EventType "tourn"]
[EventCountry "CUB"]
[SourceTitle "playchess.com"]
[Source "ChessBase"]
[SourceQuality "1"]
[TimeControl "40/5400+30:1800+30"]

{[%evp 12,101,20,18,23,13,12,26,20,14,42,3,0,3,0,0,13,16,21,0,0,0,-3,-25,-17,-40,0,-13,0,0,0,0,0,0,0,0,0,0,0,-5,54,47,55,43,66,51,55,53,57,40,54,48,59,26,56,47,74,38,32,35,57,71,35,21,89,38,258,247,304,304,304,304,897,868,860,760,2109,2104,1611,1624,2648,2465,29983,29984,29983,260,243,120,120,120,1009,866]} 1. e4 {[%emt 0:00:12]} e5 {[%emt 0:00:05]} 2. Nf3 {[%emt 0:00:07]} Nc6 {[%emt 0:00:07]} 3. Bc4 {[%emt 0:00:15]} Bc5 {[%emt 0:00:06]} 4. O-O {[%emt 0:00:20]} Nf6 {[%emt 0:00:32]} 5. d3 {[%emt 0:00:29]} O-O {[%emt 0:01:11]} 6. Re1 {[%emt 0:02:21]} h6 {[%emt 0:01:11] 6...Ng4 gains popularity.} 7. c3 {[%emt 0:00:27]} d6 {[%emt 0:01:49] C54: Giuoco Piano: 4 c3 Nf6, main lines with 5 d4 and 5 d3.} 8. a4 {[%emt 0:00:45]} a6 {[%emt 0:00:42]} 9. b4 {[%emt 0:01:24]} Ba7 {[%emt 0:00:39] White has an edge.} 10. h3 {[%emt 0:02:10]} Be6 {[%emt 0:07:42]} 11. Bb3 {[%emt 0:07:14] [#]} Bxb3 $146 {[%emt 0:04:58]} ({Predecessor:} 11... Ne7 12. Nbd2 Ng6 13. Bc2 Qd7 14. Nf1 c6 15. d4 Rfe8 16. Ng3 Qc7 17. Be3 Red8 {1-0 (28) Hernandez Moya,Y (2191)-Pages Roman,S (1997) Havana 2018}) 12. Qxb3 {[%emt 0:00:07]} Re8 {[%emt 0:00:43]} 13. Ra2 {[%emt 0:13:14]} b5 {[%emt 0:04:05]} 14. Na3 {[%emt 0:07:10]} Qb8 {[%emt 0:04:31]} 15. Be3 {[%emt 0:02:46]} Bxe3 {[%emt 0:01:34]} 16. Rxe3 {[%emt 0:07:14]} Qb7 {[%emt 0:05:39]} 17. Nh4 {[%emt 0:04:14]} Ne7 {[%emt 0:00:50]} 18. c4 {[%emt 0:18:58]} bxa4 {[%emt 0:10:48]} 19. Qxa4 {[%emt 0:00:37]} Reb8 {[%emt 0:03:36]} 20. Nc2 {[%emt 0:01:29][%cal Ba3c2,Bc2e1,Be1f3][%mdl 32]} c5 {[%emt 0:01:53]} 21. bxc5 {[%emt 0:05:37]} dxc5 {[%emt 0:00:06]} 22. Nf5 {[%emt 0:05:35]} Nxf5 {[%emt 0:08:46]} 23. exf5 {[%emt 0:00:15]} Qc7 {[%emt 0:04:37]} 24. Ne1 {[%emt 0:07:24]} Rb1 {[%emt 0:04:41]} 25. Qa5 {[%emt 0:06:07]} Qxa5 {[%emt 0:02:09]} ({Black should try} 25... Qd6 $11) 26. Rxa5 $14 {[%emt 0:00:06]} Nd7 {[%emt 0:00:02]} 27. g4 {[%emt 0:03:52]} Kf8 {[%emt 0:01:14]} 28. Kg2 {[%emt 0:00:07]} Ke7 {[%emt 0:00:53]} 29. Nf3 {[%emt 0:00:08]} Kd6 {[%emt 0:00:00]} 30. Nd2 {[%emt 0:01:55]} Rb2 {[%emt 0:03:10]} 31. Ne4+ {[%emt 0:00:08]} Kc6 {[%emt 0:00:32]} 32. Kf3 {[%emt 0:01:06]} Kb6 {[%emt 0:02:12]} 33. Ra3 {[%emt 0:00:12]} a5 {[%emt 0:03:45]} 34. Nc3 {[%emt 0:00:48] [#] Hoping for Na4+.} Kc6 {[%emt 0:02:52]} 35. Re1 {[%emt 0:00:40]} f6 {[%emt 0:02:02]} 36. Rea1 {[%emt 0:00:43]} Nb6 {[%emt 0:01:17]} 37. Ke3 {[%emt 0:00:29]} Rc2 {[%emt 0:01:29]} (37... Rb4 $11) 38. Na4 {[%emt 0:00:44]} (38. Rb3 $16) 38... Nc8 $2 {[%emt 0:02:03]} (38... Nd7 $14) 39. Rb1 $18 {[%emt 0:00:29]} Nd6 {[%emt 0:01:11][%cal Oc2c4]} 40. Rb6+ {[%emt 0:00:00]} Kc7 {[%emt 0:00:00][%cal Oc2c4]} 41. Rab3 {[%emt 0:02:19]} Ra2 $2 {[%emt 0:10:34]} (41... Rxc4 42. dxc4 Nxc4+ 43. Ke2 Nxb6 44. Rxb6 (44. Nxb6 Rd8 $18) 44... c4) 42. Nxc5 {[%emt 0:02:36] [#] And now Ne6+ would win.} a4 {[%emt 0:00:08]} 43. R3b4 {[%emt 0:04:06] aiming for Ne6+.} a3 {[%emt 0:00:16]} 44. Ne6+ {[%emt 0:04:12]} Kd7 {[%emt 0:00:26]} 45. c5 {[%emt 0:02:42]} Nc8 {[%emt 0:02:01]} 46. Rb7+ {[%emt 0:04:09]} Kc6 {[%emt 0:04:21]} 47. Nd8+ {[%emt 0:10:48]} Kd5 {[%emt 0:02:57]} 48. R4b5 $2 {[%emt 0:02:28]} (48. Rd7+ {mates} Kxc5 49. Rc4+ Kb5 50. Rd5+ Ka6 51. Ra4+ Kb6 52. Rxa8 Kc7 53. Ne6+ Kb7 54. Rda5) 48... Ra7 {[%emt 0:02:18]} 49. c6+ {[%emt 0:01:13]} (49. Rb8 $18 {is more deadly.} Rb2 50. Rxb2 axb2 51. Rxb2) 49... Kd6 $16 {[%emt 0:00:02]} 50. Rb8 {[%emt 0:00:57]} Nb6 {[%mdl 8192]} 51. R8xb6 {[%emt 0:00:26][%mdl 32768] Weighted Error Value: White=0.24 (precise) /Black=0.37. Loss on time!?} 0-1

[Event "LV Capablanca Memorial Premier 2022"]
[Site "La Habana"]
[Date "2022.04.20"]
[Round "2.2"]
[White "Ordaz Valdes, Lisandra Teresa"]
[Black "Lujan, Carolina"]
[Result "1/2-1/2"]
[ECO "D90"]
[WhiteElo "2371"]
[BlackElo "2334"]
[Annotator "TA"]
[PlyCount "26"]
[EventDate "2022.04.20"]
[EventType "tourn"]
[EventCountry "CUB"]
[SourceTitle "playchess.com"]
[Source "ChessBase"]
[SourceQuality "1"]
[TimeControl "40/5400+30:1800+30"]

{[%evp 9,26,0,15,14,9,5,30,31,53,50,63,59,55,54,53,34,29,20,33]} 1. d4 {[%emt 0:00:11]} Nf6 {[%emt 0:00:14]} 2. c4 {[%emt 0:00:14]} g6 {[%emt 0:00:06]} 3. Nc3 {[%emt 0:00:14]} d5 {[%emt 0:00:12]} 4. Nf3 {[%emt 0:00:22]} Bg7 {[%emt 0:00:18]} 5. h4 {[%emt 0:00:13]} c6 {[%emt 0:05:38]} 6. cxd5 {[%emt 0:02:53] D90: Grünfeld: 4 Nf3 Bg7 sidelines.} cxd5 {[%emt 0:00:14]} 7. Bf4 {[%emt 0:00:07]} Nc6 {[%emt 0:01:24]} 8. e3 {[%emt 0:00:22] White has an edge.} (8. Qb3 {is interesting.} Na5 9. Qa3 Nc4 10. Qb4) 8... Bf5 {[%emt 0:11:52]} 9. Qb3 {[%emt 0:02:42]} Qb6 {[%emt 0:17:22]} 10. Qxb6 {[%emt 0:05:35]} axb6 {[%emt 0:00:11]} 11. Bb5 {[%emt 0:09:23] [#]} O-O $146 {[%emt 0:04:19]} ({Predecessor:} 11... Bd7 12. Ke2 Kd8 13. Rhc1 h6 14. a3 e6 15. b4 Ne4 16. Na4 Nxd4+ 17. Nxd4 Bxb5+ 18. Nxb5 Rxa4 {1-0 (53) Li,C (2732)-Olafsson,H (2508) Chess.com INT 2018}) 12. Ne5 {[%emt 0:09:09]} Nb4 {[%emt 0:16:36]} 13. O-O {[%emt 0:13:50] Threatens to win with a3.} Ne4 $1 {[%emt 0:02:31] Weighted Error Value: White=0.03 (flawless) /Black=0.11 (very precise)} 1/2-1/2

[Event "LV Capablanca Memorial Premier 2022"]
[Site "La Habana"]
[Date "2022.04.20"]
[Round "2.3"]
[White "Kiolbasa, Oliwia"]
[Black "Miranda Llanes, Yerisbel"]
[Result "1-0"]
[ECO "C78"]
[WhiteElo "2388"]
[BlackElo "2261"]
[Annotator "TA"]
[PlyCount "69"]
[EventDate "2022.04.20"]
[EventType "tourn"]
[EventCountry "CUB"]
[SourceTitle "playchess.com"]
[Source "ChessBase"]
[SourceQuality "1"]
[TimeControl "40/5400+30:1800+30"]

{[%evp 17,69,37,41,0,1,14,14,12,12,0,22,14,22,24,188,175,252,277,277,272,279,277,277,277,270,268,393,363,385,393,394,349,431,421,545,565,1275,1205,1652,1419,1417,1387,1363,1340,1283,1248,1206,911,29982,29983,29983,2750,1610,1525]} 1. e4 {[%emt 0:00:05]} e5 {[%emt 0:00:21]} 2. Nf3 {[%emt 0:00:09]} Nc6 {[%emt 0:00:04]} 3. Bb5 {[%emt 0:00:15]} a6 {[%emt 0:00:05]} 4. Ba4 {[%emt 0:00:15]} Nf6 {[%emt 0:00:02]} 5. O-O {[%emt 0:00:44]} b5 {[%emt 0:00:01]} 6. Bb3 {[%emt 0:00:11]} Bc5 {[%emt 0:00:02]} 7. c3 {[%emt 0:01:22]} d6 {[%emt 0:00:05]} 8. d4 {[%emt 0:01:17]} Bb6 {[%emt 0:00:02]} 9. a4 {[%emt 0:00:17]} Rb8 {[%emt 0:00:49]} 10. a5 {[%emt 0:01:02] C78: Ruy Lopez: Archangelsk and Möller Defences.} Ba7 {[%emt 0:00:01]} (10... Nxa5 11. Rxa5 Bxa5 12. dxe5 $14) (10... Bxa5 $2 11. dxe5 (11. d5 Ne7 $18) 11... dxe5 12. Qxd8+ Kxd8 13. Bd5 (13. Bxf7 Bb6 $16) 13... Nxd5 14. exd5 $18) 11. h3 {[%emt 0:00:30]} O-O {[%emt 0:00:24]} 12. Be3 {[%emt 0:00:41] The position is equal.} exd4 {[%emt 0:00:23] 12...Re8 is the modern continuation.} 13. cxd4 {[%emt 0:00:30]} Nb4 {[%emt 0:00:01]} 14. Nc3 {[%emt 0:01:08]} Bb7 {[%emt 0:00:04]} 15. Ng5 $36 {[%emt 0:02:40][%mdl 2048] White has some pressure.} c5 $2 {[%emt 0:09:21] [#] A mistake that costs the game.} (15... h6 $2 16. Nxf7 Rxf7 17. Bxf7+ Kxf7 18. Qb3+ Nbd5 19. f3 $16 (19. Nxd5 Nxd5 20. exd5 Kg8 $16) (19. exd5 Qd7 $16)) (15... Qe7 $11 {and Black has nothing to worry.}) 16. dxc5 $146 {[%emt 0:06:35]} ({Predecessor:} 16. e5 Nfd5 17. Qh5 h6 18. Nxf7 Qe8 19. dxc5 Rxf7 20. exd6 Qc6 21. Nxd5 Nxd5 22. Bxd5 Qxd5 23. Qxd5 Bxd5 {½-½ (61) Miton,K (2655)-Kazhgaleyev,M (2579) France 2007}) 16... Bxc5 {[%emt 0:09:48] [#]} (16... dxc5 $142 17. e5 Nfd5) 17. e5 $1 {[%emt 0:10:02]} Bxe3 {[%emt 0:14:31]} 18. Nxf7 {[%emt 0:03:24] Really sharp!} Rxf7 {[%emt 0:02:24]} 19. Bxf7+ {[%emt 0:00:54]} Kxf7 {[%emt 0:00:09]} 20. fxe3 {[%emt 0:01:49]} (20. exf6 Bc5 21. Qh5+ Kg8 22. f7+ (22. fxg7 Qd7 $17) 22... Kf8 $11) 20... dxe5 {[%emt 0:02:48] [#] Strongly threatening ...Qxd1.} 21. Qb3+ {[%emt 0:00:48]} Kg6 {[%emt 0:01:34]} (21... Nbd5 $2 22. e4 $18) (21... Ke8 $142 22. Qxb4 Qe7) 22. Qxb4 {[%emt 0:02:41]} Qd2 {[%emt 0:00:05][%csl Gb7][%cal Rd2g2]} 23. Rf2 {[%emt 0:11:56]} Qxe3 {[%emt 0:00:05]} 24. Rd1 {[%emt 0:01:30] Prevents Rd8.} Rc8 {[%emt 0:11:39]} 25. Qd6 {[%emt 0:02:49] Rd3 is the strong threat.} Rc4 {[%emt 0:04:47]} 26. Rd3 {[%emt 0:06:32]} Qc1+ {[%emt 0:13:22]} 27. Kh2 {[%emt 0:02:37] aiming for Rg3+.} Rf4 {[%emt 0:17:01] [#]} 28. Ne2 $1 {[%emt 0:10:29][%mdl 512] And now Rg3+ would win.} Rxf2 {[%emt 0:02:29]} 29. Rg3+ {[%emt 0:00:10][%mdl 64] Skewer} ({Stronger than} 29. Nxc1 Rxg2+ 30. Kh1 Rg5+ 31. Kh2 Rg2+ 32. Kh1 Rg5+ 33. Kh2 Rg2+ $11) 29... Qg5 {[%emt 0:00:10]} 30. Rxg5+ {[%emt 0:00:14]} Kxg5 {[%emt 0:00:01]} 31. Qxe5+ {[%emt 0:00:18]} Rf5 {[%emt 0:00:22]} 32. h4+ {[%emt 0:01:52]} Kg4 {[%emt 0:01:01]} 33. Qg3+ {[%emt 0:00:36]} Kh5 {[%emt 0:00:05]} 34. Nf4+ {[%emt 0:00:18]} (34. Qxg7 $142 Kxh4 35. g3+ Kh5 36. Nf4+ Rxf4 37. gxf4 h6 38. Qxf6 Kg4 39. Qg7+ Kxf4 40. Qxb7) 34... Kh6 {[%emt 0:00:17]} 35. Ne6 {[%emt 0:00:14] Weighted Error Value: White=0.05 (flawless) /Black=0.90} 1-0

[Event "LV Capablanca Memorial Premier 2022"]
[Site "La Habana"]
[Date "2022.04.20"]
[Round "2.4"]
[White "Forgas Moreno, Yaniela"]
[Black "Cori Tello, Deysi"]
[Result "1-0"]
[ECO "A03"]
[WhiteElo "2303"]
[BlackElo "2391"]
[Annotator "TA"]
[PlyCount "73"]
[EventDate "2022.04.20"]
[EventType "tourn"]
[EventCountry "CUB"]
[SourceTitle "playchess.com"]
[Source "ChessBase"]
[SourceQuality "1"]
[TimeControl "40/5400+30:1800+30"]

{[%evp 9,73,-22,-25,-18,0,-12,0,-4,23,27,22,21,30,25,43,20,24,25,39,0,0,0,0,0,0,0,0,-23,-3,-21,21,8,8,8,12,-39,-20,-28,-23,-29,0,-65,-17,-36,-13,-31,-25,-21,-38,-46,-42,-86,0,-39,-25,-181,0,-6,-8,-13,-41,-66,-8,-8,0,0]} 1. d3 {[%emt 0:02:05]} d5 {[%emt 0:03:30]} 2. f4 {[%emt 0:00:26]} g6 {[%emt 0:01:03]} 3. Nf3 {[%emt 0:00:17]} Bg7 {[%emt 0:00:02]} 4. g3 {[%emt 0:00:32]} Nh6 {[%emt 0:04:35]} 5. c3 {[%emt 0:04:36]} O-O {[%emt 0:01:59]} 6. Bg2 {[%emt 0:00:59] A03: Bird's Opening with 1...d5.} c5 {[%emt 0:01:16]} 7. O-O {[%emt 0:05:16]} d4 {[%emt 0:00:37]} 8. e4 {[%emt 0:00:34]} dxe3 {[%emt 0:11:12]} 9. Bxe3 {[%emt 0:02:28]} Qc7 {[%emt 0:00:28]} 10. h3 {[%emt 0:01:12]} Rd8 {[%emt 0:01:11]} 11. Qe2 {[%emt 0:01:42]} Nf5 {[%emt 0:12:27]} 12. Bf2 {[%emt 0:05:21] [#]} h5 $146 {[%emt 0:00:01]} ({Predecessor:} 12... Nd6 13. Nbd2 b6 14. Ne4 Nxe4 15. dxe4 Ba6 16. c4 Nc6 17. e5 Rac8 18. b3 Bb7 {½-½ (49) Pogosian,V (1992)-Odegov,A (2261) St Petersburg 2019}) 13. Re1 {[%emt 0:10:25]} Nc6 {[%emt 0:01:52]} 14. Ne5 {[%emt 0:01:36]} Nxe5 {[%emt 0:03:29]} 15. fxe5 {[%emt 0:00:11]} Be6 {[%emt 0:06:51]} 16. Nd2 {[%emt 0:10:50]} Rac8 {[%emt 0:03:54][%cal Ba8c8,Bc8c6,Bc6e6][%mdl 32]} 17. Nf3 {[%emt 0:21:54]} Bd5 {[%emt 0:04:10]} 18. b3 {[%emt 0:00:30]} Qa5 {[%emt 0:04:33]} 19. Rac1 {[%emt 0:03:53]} (19. g4 {is interesting.} hxg4 20. hxg4 Nh6 21. c4) 19... Rc6 {[%emt 0:04:56]} (19... Bh6 $5 {[%cal Rh6c1]} 20. Rc2 Ng7 $11) 20. g4 {[%emt 0:04:33]} hxg4 {[%emt 0:00:29]} 21. hxg4 {[%emt 0:00:04]} Nh6 {[%emt 0:00:05]} 22. Nh4 {[%emt 0:01:27]} (22. c4 $11 Be6 23. Nh2) 22... Qa6 {[%emt 0:04:55]} 23. Rcd1 {[%emt 0:08:14]} Re6 {[%emt 0:13:17]} 24. Bg3 {[%emt 0:01:07]} ({But not} 24. Bxc5 $2 Bxe5 25. Qd2 Nxg4 $19) 24... Qa5 {[%emt 0:03:00]} 25. Rc1 {[%emt 0:01:51]} (25. Bxd5 $11 Rxd5 26. Qf3) 25... Qc7 {[%emt 0:07:26]} (25... Bxg2 $15 {deserves consideration.} 26. Kxg2 f5) 26. d4 {[%emt 0:05:02]} Rc6 $36 {[%emt 0:01:47][%mdl 2048] Threatens to win with ...cxd4. Black is more active.} 27. g5 {[%emt 0:04:32]} Nf5 {[%emt 0:00:21]} 28. Nxf5 gxf5 {[%emt 0:00:02]} 29. Bxd5 {[%emt 0:01:54]} Rxd5 {[%emt 0:00:01]} 30. Qf3 {[%emt 0:00:20]} Qd7 {[%emt 0:02:54]} ({Black should play} 30... e6 $17 31. Qf4 cxd4 32. cxd4 Qa5) 31. Bf2 {[%emt 0:01:18]} Rg6 {[%emt 0:02:30][%cal Rc5d4]} 32. Be3 {[%emt 0:00:45]} (32. Kf1 $11 {and White is okay.}) 32... f4 $2 {[%emt 0:00:59]} (32... cxd4 $19 33. cxd4 Rxd4) 33. Bxf4 $11 {[%emt 0:00:27]} ({Much worse is} 33. Qxf4 Bh6 34. Qg3 (34. Rf1 $2 Rxg5+ 35. Qxg5+ Bxg5 $19) 34... cxd4 35. cxd4 {[#]} Bxg5 $1 36. Bxg5 f6 $17) 33... cxd4 {[%emt 0:00:21][%cal Od7f5]} 34. c4 {[%emt 0:00:25]} Ra5 {[%emt 0:00:18] [#] Hoping for ...Qf5.} 35. a4 {[%emt 0:00:38]} Qf5 {[%emt 0:00:50]} ({Black should try} 35... Bh6 $1 $15 36. Rc2 Bxg5 37. Bxg5 Rxg5+ 38. Rg2 Rxg2+ 39. Kxg2 Ra6) 36. Kf2 $1 {[%emt 0:00:02]} Bxe5 {[%emt 0:01:09]} 37. Bd2 {[%mdl 32768] Weighted Error Value: White=0.21 (precise) /Black=0.26 (precise) . Loss on time!?} 1-0

[Event "LV Capablanca Memorial Premier 2022"]
[Site "La Habana"]
[Date "2022.04.20"]
[Round "2.5"]
[White "Hernandez Gil, Ineymig"]
[Black "Bulmaga, Irina"]
[Result "1/2-1/2"]
[ECO "B11"]
[WhiteElo "2348"]
[BlackElo "2390"]
[Annotator "TA"]
[PlyCount "102"]
[EventDate "2022.04.20"]
[EventType "tourn"]
[EventCountry "CUB"]
[SourceTitle "playchess.com"]
[Source "ChessBase"]
[SourceQuality "1"]
[TimeControl "40/5400+30:1800+30"]

{[%evp 11,102,9,32,22,26,6,14,8,6,5,18,6,0,2,10,9,8,10,30,8,27,12,29,10,7,0,0,0,0,0,0,0,0,0,0,0,0,0,0,0,0,0,0,0,0,0,0,0,0,0,0,0,0,0,0,0,0,0,0,0,0,0,0,0,0,0,0,0,0,0,0,0,0,0,0,0,0,0,0,0,0,0,0,0,0,0,0,0,0,0,0,0,0]} 1. e4 {[%emt 0:01:04]} c6 {[%emt 0:00:08]} 2. Nc3 {[%emt 0:00:14]} d5 {[%emt 0:00:08]} 3. Nf3 {[%emt 0:00:10]} Bg4 {[%emt 0:00:31]} 4. h3 {[%emt 0:00:12]} Bxf3 {[%emt 0:00:08]} 5. Qxf3 {[%emt 0:00:11]} e6 {[%emt 0:00:56]} 6. d4 {[%emt 0:00:40]} dxe4 {[%emt 0:01:33]} 7. Qxe4 {[%emt 0:00:33] B11: Caro-Kann: Two Knights Variation.} Nf6 {[%emt 0:00:30]} 8. Qd3 {[%emt 0:01:23]} Be7 {[%emt 0:02:37]} 9. Be2 {[%emt 0:01:12]} O-O {[%emt 0:00:27]} 10. O-O {[%emt 0:01:46]} Nbd7 {[%emt 0:05:42][%cal Bb8d7,Bd7f6,Bf6d5][%mdl 32]} 11. Ne4 {[%emt 0:06:28]} Nxe4 {[%emt 0:07:40]} 12. Qxe4 {[%emt 0:00:10]} Nf6 {[%emt 0:00:12]} 13. Qd3 {[%emt 0:05:59] [#]} Qd6 $146 {[%emt 0:02:55]} ({Predecessor:} 13... Qd5 14. c3 Rad8 15. Bf3 Qa5 16. a4 Qc7 17. a5 a6 18. b4 Bd6 19. Bg5 Be7 {1-0 (45) Donchenko,A (2631)-Sucikova,S (2127) Chess.com INT 2019}) 14. c3 {[%emt 0:05:09]} Nd5 {[%emt 0:03:17]} 15. Qe4 {[%emt 0:06:42]} Bf6 {[%emt 0:07:42]} 16. Bd3 {[%emt 0:04:40][%csl Gd3][%cal Re4h7] [#]} g6 {[%emt 0:00:40]} 17. Re1 {[%emt 0:02:36]} Rfe8 {[%emt 0:05:18] The position is equal.} 18. Bh6 {[%emt 0:07:13]} Bg7 {[%emt 0:02:03]} 19. Bxg7 {[%emt 0:01:53]} Kxg7 {[%emt 0:02:31]} 20. Rad1 {[%emt 0:00:33]} Rad8 {[%emt 0:02:54]} 21. g3 {[%emt 0:05:28]} Nf6 {[%emt 0:04:47]} 22. Qe3 {[%emt 0:06:34]} h5 {[%emt 0:01:27]} 23. h4 {[%emt 0:04:53]} Ng4 {[%emt 0:05:28]} 24. Qg5 {[%emt 0:04:21]} e5 {[%emt 0:10:42]} 25. dxe5 {[%emt 0:04:47]} Qc5 {[%emt 0:02:28]} 26. Qf4 {[%emt 0:03:21]} Rxe5 {[%emt 0:04:54]} 27. Rxe5 {[%emt 0:02:33] The board is on fire.} Nxe5 {[%emt 0:01:10]} 28. Be2 {[%emt 0:01:49]} Rxd1+ {[%emt 0:01:04]} 29. Bxd1 {[%emt 0:00:02]} Qd6 {[%emt 0:04:33]} 30. Be2 {[%emt 0:02:39]} Qd5 {[%emt 0:02:02]} 31. a3 {[%emt 0:06:26]} b6 {[%emt 0:01:09]} 32. c4 {[%emt 0:02:46]} Qd6 {[%emt 0:01:04]} 33. Kg2 {[%emt 0:05:32]} f6 {[%emt 0:00:48]} 34. b4 {[%emt 0:01:43]} c5 {[%emt 0:04:48]} 35. b5 {[%emt 0:03:15]} Qd4 {[%emt 0:00:04]} 36. Qxd4 {[%emt 0:01:18]} cxd4 $11 {[%emt 0:00:02][%mdl 4096] Endgame KB-KN} 37. f4 {[%emt 0:00:21]} Nd7 {[%emt 0:00:16]} (37... d3 38. fxe5 (38. Kf2 Nxc4 39. Bxd3 Nb2 $11) 38... dxe2 39. Kf2 fxe5 40. a4 $18) 38. Kf2 {[%emt 0:01:53]} Kf7 {[%emt 0:06:45]} 39. Bf3 {[%emt 0:00:47]} Ke6 {[%emt 0:00:22]} 40. Be4 {[%emt 0:00:00]} f5 {[%emt 0:00:00]} 41. Bd5+ {[%emt 0:03:19]} Ke7 {[%emt 0:04:46]} 42. Ke2 {[%emt 0:03:33]} Nc5 {[%emt 0:02:40]} 43. Kf3 {[%emt 0:01:56]} Kf6 {[%emt 0:11:08]} 44. Bc6 {[%emt 0:03:38]} Ke6 {[%emt 0:02:59]} 45. Bd5+ {[%emt 0:01:22]} Ke7 {[%emt 0:00:56]} 46. Bc6 {[%emt 0:01:19]} Na4 {[%emt 0:03:37]} 47. Ke2 {[%emt 0:05:09]} Nc5 {[%emt 0:05:09]} 48. Kf3 {[%emt 0:00:47]} a6 {[%emt 0:00:21]} 49. bxa6 {[%emt 0:04:05]} Nxa6 {[%emt 0:00:03]} 50. Ke2 {[%emt 0:01:44] [#] Strongly threatening Kd3.} Nc5 {[%emt 0:00:29]} 51. Kf3 {[%emt 0:00:37]} Ke6 {[%emt 0:00:36] An even fight not without its subleties.  Weighted Error Value: White=0.02 (flawless) /Black=0.02 (flawless)} 1/2-1/2